bitfinex/quotes_ETHUSD_20250406
["timestamp","ask_amount","ask_price","bid_price","bid_amount"]
[1743971899350,1.5137,1584.9,1584.2,6.31201]
[1743971899637,0.06314639,1584.8,1583.0,11.41346316]
[1743971899867,0.06314639,1584.8,1583.1,0.06312649]
[1743971900050,0.61314639,1584.8,1582.9,1.14134632]
[1743971900257,0.55,1584.4,1582.4,11.41346316]
[1743971900430,1.5137,1584.1,1582.0,37.892]
[1743971900627,37.95514639,1584.0,1582.0,44.21299]
[1743971900829,3.0,1583.9,1582.4,12.63837]
[1743971901061,0.06314639,1583.8,1582.5,1.263837]
[1743971901365,1.5137,1583.7,1582.1,6.32071]
[1743971901570,1.5137,1583.5,1581.9,6.32149]
[1743971901876,1.5137,1583.5,1581.8,19.67197348]
[1743971901877,0.06314639,1583.4,1582.0,6.38411058]
[1743971902033,0.06314639,1583.4,1582.1,0.63841106]
[1743971902236,0.06314639,1583.4,1582.2,0.06319019]
[1743971902448,0.06314639,1583.4,1582.3,6.31969]
[1743971902651,0.06314639,1583.4,1581.8,19.67192348]
[1743971902976,0.06314639,1583.4,1581.9,6.32149]
[1743971903145,0.06314639,1583.4,1582.0,0.632149]
[1743971903471,0.06314639,1583.4,1582.3,6.31971]
[1743971903678,0.06314639,1583.4,1582.7,0.55]
[1743971903879,0.06314639,1583.4,1582.5,0.55]
[1743971904202,0.06314639,1583.4,1581.8,19.99932813]
[1743971904480,0.06314639,1583.4,1582.2,3.0]
[1743971904635,0.06314639,1583.4,1582.2,9.32013]
[1743971904835,0.06314639,1583.4,1582.3,0.99519152]
[1743971905045,0.06314639,1583.4,1582.5,0.55]
[1743971905272,1.5137,1583.5,1583.0,3.55]
[1743971905492,0.06314639,1583.9,1583.0,3.0]
[1743971905682,0.06314639,1583.9,1582.6,6.31842]
[1743971905833,0.55,1583.7,1581.8,1.93682032]
[1743971906032,1.5137,1583.5,1581.7,0.44384259]
[1743971906244,1.57684639,1583.4,1581.5,6.3229]
[1743971906483,7.15009061,1583.3,1579.6,4.71382151]
[1743971906661,3.1,1583.1,1580.7,6.32597]
[1743971906877,3.1,1583.1,1579.9,11.41346316]
[1743971906878,0.06314639,1583.0,1580.8,1.44867406]
[1743971907051,0.06314639,1583.0,1582.0,3.0]
[1743971907254,0.06136509,1583.0,1582.2,3.55]
[1743971907470,0.06136509,1583.4,1582.1,6.32052]
[1743971907647,1.0095,1583.3,1582.2,0.55]
[1743971908016,0.06136509,1583.2,1581.9,3.0]
[1743971908160,1.5595,1582.9,1580.5,17.74043316]
[1743971908359,1.0095,1582.6,1580.6,6.3264]
[1743971908573,3.0,1582.4,1580.7,6.95857]
[1743971908763,0.06136509,1582.3,1580.9,6.32548]
[1743971909083,1.0095,1582.2,1580.9,0.06322983]
[1743971909283,0.06136509,1582.1,1580.7,6.32614]
[1743971909583,1.0095,1582.2,1580.5,11.41346316]
[1743971909584,1.0095,1582.2,1580.8,1.57833143]
[1743971909791,1.0095,1582.2,1581.3,0.55]
[1743971910007,1.0095,1582.2,1581.6,0.55]
[1743971910291,1.0095,1582.7,1581.9,0.55]
[1743971910491,1.0095,1582.7,1581.9,6.32121]
[1743971910696,0.06136509,1582.6,1581.8,0.55]
[1743971910996,0.06136509,1582.6,1581.7,0.55]
[1743971911200,1.0095,1582.5,1580.5,11.41346316]
[1743971911485,3.0,1582.3,1579.9,0.32781166]
[1743971911701,1.0095,1581.9,1580.0,6.32882]
[1743971911902,1.0095,1581.9,1580.0,11.41346316]
[1743971911903,0.06136509,1581.8,1580.0,11.41346316]
[1743971912075,0.06136509,1581.8,1579.9,6.32917]
[1743971912279,1.0095,1581.6,1580.0,0.632917]
[1743971912580,1.5595,1581.4,1579.5,6.33095]
[1743971912776,37.98636509,1581.3,1579.4,17.74497316]
[1743971913105,1.0095,1581.4,1580.1,6.32854]
[1743971913318,0.06136509,1581.3,1579.5,7.65666608]
[1743971913612,0.06136509,1581.3,1579.7,6.33008]
[1743971913766,0.06136509,1581.3,1579.8,0.633008]
[1743971913970,0.06136509,1581.3,1579.9,6.39242931]
[1743971914167,0.06136509,1581.3,1579.9,0.06327054]
[1743971914487,0.06136509,1581.3,1580.2,3.0]
[1743971914789,0.06136509,1581.3,1579.9,6.32929]
[1743971914991,0.06136509,1581.3,1580.0,6.962039]
[1743971915219,0.06136509,1581.3,1580.1,6.3919133]
[1743971915537,1.0095,1581.4,1580.6,3.55]
[1743971915811,1.0095,1581.4,1580.5,6.32702]
[1743971915812,1.0095,1582.5,1581.8,0.55]
[1743971916016,0.06136509,1582.4,1581.7,0.63059491]
[1743971916223,0.06136509,1582.4,1580.6,3.0]
[1743971916514,0.06136509,1582.4,1580.6,6.32645]
[1743971916679,0.55,1582.3,1580.7,0.632645]
[1743971917007,0.55,1581.9,1580.0,0.632929]
[1743971917312,3.0,1581.7,1580.0,6.32893]
[1743971917515,3.0,1581.5,1579.8,11.41346316]
[1743971917695,0.3789,1581.3,1579.2,17.74544316]
[1743971917897,0.3789,1581.1,1579.4,6.33122]
[1743971918080,0.3789,1580.9,1579.3,8.10612432]
[1743971918287,0.06136509,1580.8,1579.4,6.33136]
[1743971918612,0.3789,1580.2,1578.9,0.32793458]
[1743971918770,0.3789,1579.9,1577.6,13.00626316]
[1743971918972,0.06136509,1579.8,1578.4,6.33529]
[1743971919267,0.3789,1579.9,1578.5,0.633529]
[1743971919468,0.06136509,1580.7,1579.0,0.55]
[1743971919666,37.951,1581.7,1579.4,11.41346316]
[1743971919667,0.06136509,1581.6,1579.4,11.41346316]
[1743971919898,0.06136509,1581.6,1580.2,0.55]
[1743971920104,0.06136509,1581.6,1580.4,3.0]
[1743971920301,0.06136509,1581.6,1579.6,0.86411502]
[1743971920500,0.06136509,1581.6,1580.8,6.32572]
[1743971920804,6.19159491,1582.3,1580.9,0.06324127]
[1743971920973,0.06136509,1582.2,1580.8,0.632572]
[1743971921175,0.06136509,1582.2,1580.9,0.6132387]
[1743971921481,0.06136509,1582.2,1581.3,0.55]
[1743971921820,37.958,1582.1,1580.2,3.0]
[1743971921982,0.06136509,1582.0,1580.8,3.55]
[1743971922181,0.06136509,1582.0,1580.5,0.55]
[1743971922399,3.06136509,1582.0,1580.1,6.32852]
[1743971922619,3.06136509,1582.0,1579.7,6.33031]
[1743971922812,0.55,1581.9,1579.4,11.41346316]
[1743971922968,0.55,1581.7,1579.6,6.33032]
[1743971923167,0.06136509,1581.6,1579.4,11.41346316]
[1743971923391,0.06136509,1581.6,1579.9,6.32922]
[1743971923606,0.06136509,1582.0,1580.3,0.55]
[1743971923784,0.06136509,1582.0,1580.5,6.32694]
[1743971923984,0.06136509,1582.0,1580.2,0.55]
[1743971924176,0.06136509,1582.6,1580.9,6.32518]
[1743971924376,0.06136509,1582.6,1580.7,3.0]
[1743971924609,0.06136509,1582.6,1580.3,6.44352039]
[1743971924902,0.06136509,1582.6,1581.4,0.55]
[1743971925111,0.06136509,1582.6,1581.4,0.06321876]
[1743971925295,0.06136509,1582.7,1581.4,6.32349]
[1743971925632,0.06136509,1582.7,1580.8,0.55]
[1743971925823,0.06136509,1582.7,1581.0,0.55]
[1743971926109,0.06136509,1582.7,1580.6,11.41346316]
[1743971926414,0.06136509,1582.7,1581.6,0.55]
[1743971926575,0.06136509,1582.7,1581.8,0.55]
[1743971926942,6.11534553,1582.8,1582.7,6.31831]
[1743971927155,6.11534553,1582.8,1582.5,6.31911]
[1743971927434,7.07927687,1583.1,1583.0,6.86711]
[1743971927630,37.959,1584.3,1583.2,0.55]
[1743971927631,0.06136509,1584.2,1583.2,0.55]
[1743971927934,54.63640339,1585.0,1583.4,0.55]
[1743971928174,3.06136509,1584.9,1582.7,1.5565]
[1743971928343,0.50175988,1584.9,1583.2,3.55]
[1743971928541,7.10185049,1584.9,1582.5,0.686911]
[1743971928847,0.55,1584.2,1581.8,11.41346316]
[1743971929003,0.50175988,1584.1,1581.3,0.57345453]
[1743971929201,3.0,1583.9,1581.9,6.32112]
[1743971929437,0.06136509,1583.8,1581.4,6.43913991]
[1743971929737,0.06136509,1583.8,1582.0,3.0]
[1743971929908,0.44039479,1583.7,1581.5,6.32286]
[1743971930110,0.06136509,1583.6,1582.1,6.32069]
[1743971930299,0.55,1583.4,1581.3,5.14791085]
[1743971930503,0.06136509,1583.3,1581.3,5.14791085]
[1743971930711,0.06136509,1583.3,1582.1,3.0]
[1743971930915,0.44039479,1583.2,1582.1,0.55]
[1743971931239,0.06136509,1583.1,1581.3,5.14791085]
[1743971931444,37.95,1583.0,1581.4,6.83811108]
[1743971931643,3.06136509,1582.9,1581.4,0.51479108]
[1743971931847,0.44162712,1582.8,1581.0,6.32473]
[1743971932148,0.55,1582.6,1580.5,6.3269]
[1743971932450,0.50299221,1582.5,1580.6,6.38974742]
[1743971932658,0.55,1582.4,1580.7,0.63897474]
[1743971932858,0.55,1582.4,1580.0,7.8853]
[1743971932859,0.06136509,1582.3,1579.9,6.32951]
[1743971933153,0.55,1582.2,1579.5,7.47244632]
[1743971933353,0.55,1582.0,1579.7,6.39358177]
[1743971933556,0.55,1582.0,1580.0,6.32888]
[1743971933557,3.0,1581.8,1580.0,6.32888]
[1743971933846,0.50299221,1581.7,1580.2,6.32831]
[1743971934018,0.50299221,1581.7,1580.3,0.06325859]
[1743971934225,0.44162712,1581.6,1580.4,6.32749]
[1743971934413,0.06136509,1581.5,1580.5,0.06324426]
[1743971934615,0.06136509,1581.5,1580.6,6.38963707]
[1743971934815,0.06136509,1581.5,1580.8,0.55]
[1743971935127,0.06136509,1581.9,1580.7,0.63896371]
[1743971935322,0.06136509,1581.9,1580.8,6.38906303]
[1743971935519,0.06136509,1581.9,1580.8,0.06325303]
[1743971935707,0.06136509,1581.9,1581.0,0.55]
[1743971935907,0.06136509,1582.0,1580.9,0.55]
[1743971936247,3.06136509,1582.0,1580.3,3.0]
[1743971936446,3.06136509,1582.0,1580.8,0.55]
[1743971936741,0.44247637,1581.9,1580.9,6.32525]
[1743971936950,0.44247637,1581.9,1580.8,7.563391]
[1743971936951,0.06136509,1581.8,1581.0,3.55]
[1743971937317,0.06136509,1582.0,1580.9,0.55]
[1743971937510,0.06136509,1582.0,1581.1,0.55]
[1743971938244,0.06136509,1582.0,1579.5,12.55480948]
[1743971938441,0.4426001,1581.9,1580.8,6.32565]
[1743971938746,0.4426001,1581.9,1581.0,0.55]
[1743971938945,38.01636509,1583.2,1581.4,3.0]
[1743971939177,0.44283367,1583.1,1581.1,6.32447]
[1743971939378,0.06136509,1583.0,1581.2,3.55]
[1743971939709,0.44283367,1582.9,1581.4,0.55]
[1743971939846,0.06136509,1582.8,1581.5,6.32295]
[1743971940042,0.44283367,1582.7,1581.5,8.49902773]
[1743971940294,0.06136509,1582.6,1581.6,3.55]
[1743971940453,0.06136509,1582.6,1581.7,0.355]
[1743971940649,0.06136509,1583.1,1582.0,3.55]
[1743971940890,0.06136509,1583.1,1582.4,0.55]
[1743971941055,0.06136509,1583.8,1582.7,8.49902773]
[1743971941263,0.06136509,1583.8,1582.8,0.6131699]
[1743971941465,0.06136509,1583.8,1583.2,0.55]
[1743971941781,0.06136509,1584.5,1583.6,3.55]
[1743971941998,0.06136509,1584.5,1583.8,0.55]
[1743971942190,17.15290907,1585.5,1584.3,8.49902773]
[1743971942191,16.67740339,1585.5,1584.3,8.49902773]
[1743971942389,0.50462516,1585.4,1584.4,0.91300683]
[1743971942564,0.50462516,1585.4,1584.5,6.86086]
[1743971942750,0.06136509,1585.4,1584.5,0.55]
[1743971943592,0.06136509,1585.4,1583.8,3.0]
[1743971943778,0.06136509,1585.4,1583.8,0.55]
[1743971943978,0.06136509,1585.4,1584.0,0.55]
[1743971944158,0.06136509,1585.4,1584.0,1.53635]
[1743971944361,0.06136509,1585.4,1584.0,3.55]
[1743971944566,0.06136509,1585.4,1584.4,0.55]
[1743971944778,0.06136509,1585.4,1584.5,6.31093]
[1743971945092,0.06136509,1585.4,1584.5,3.55]
[1743971945296,0.06136509,1585.4,1584.7,0.55]
[1743971945466,0.06136509,1585.4,1584.8,0.0630837]
[1743971945800,0.06136509,1585.4,1584.3,6.31163]
[1743971945801,0.06136509,1585.4,1584.6,0.55]
[1743971945999,0.06136509,1585.6,1584.3,3.55]
[1743971946309,0.06136509,1585.6,1584.5,0.55]
[1743971946603,2.46397857,1586.1,1584.7,0.55]
[1743971946807,0.06136509,1586.0,1584.7,9.31]
[1743971946968,2.46397857,1586.1,1584.6,6.31074]
[1743971946969,2.52534366,1586.1,1584.9,0.55]
[1743971947168,2.52534366,1586.1,1585.3,9.85793]
[1743971947375,2.52534366,1586.1,1585.2,9.30799]
[1743971947589,2.52534366,1586.1,1585.3,0.55]
[1743971947794,0.00461577,1586.0,1585.3,6.66277]
[1743971947991,0.06598086,1586.0,1585.4,0.55]
[1743971948304,0.00461577,1586.0,1585.7,0.55]
[1743971948506,0.00461577,1586.0,1585.2,3.55]
[1743971948704,0.06598086,1586.0,1584.9,6.30923]
[1743971948891,0.06598086,1586.0,1585.0,7.489883]
[1743971949092,0.06598086,1586.0,1585.0,7.490003]
[1743971949293,0.06598086,1586.0,1585.1,6.30862]
[1743971949516,0.06598086,1586.0,1585.2,0.61306788]
[1743971949801,0.00461577,1586.0,1585.2,0.55]
[1743971949975,0.00461577,1586.0,1585.4,0.55]
[1743971950169,0.00461577,1586.0,1585.5,3.55]
[1743971950372,0.00461577,1586.0,1585.5,0.55]
[1743971950571,0.00461577,1586.0,1585.7,0.55]
[1743971950804,0.00461577,1586.0,1585.6,0.55]
[1743971951012,0.00461577,1586.0,1585.6,0.905]
[1743971951212,0.00461577,1586.0,1585.6,3.905]
[1743971951521,0.06136509,1587.0,1585.8,0.55]
[1743971951722,0.06136509,1587.2,1585.8,3.0]
[1743971951906,0.06136509,1587.2,1585.6,0.355]
[1743971952218,3.06136509,1587.2,1585.5,6.85681]
[1743971952415,3.06136509,1587.2,1585.7,0.55]
[1743971952721,0.06136509,1587.2,1585.3,3.0]
[1743971953019,0.55,1587.1,1585.2,0.685848]
[1743971953221,0.55,1587.1,1584.4,6.31153]
[1743971953222,3.55,1586.9,1584.4,6.31153]
[1743971953418,0.55,1586.4,1584.1,6.31254]
[1743971953621,3.0,1586.2,1583.9,13.02387408]
[1743971953795,0.06136509,1586.1,1584.5,6.31108]
[1743971954004,0.06136509,1586.1,1584.3,6.31193]
[1743971954215,0.06136509,1586.1,1584.8,6.30969]
[1743971954522,0.06136509,1586.1,1584.9,0.06307853]
[1743971954692,0.06136509,1586.1,1585.1,0.55]
[1743971954885,0.06136509,1586.2,1585.2,0.06306777]
[1743971955088,0.06136509,1586.2,1585.4,6.30755]
[1743971955395,37.879,1587.0,1585.6,0.55]
[1743971955583,0.06136509,1586.9,1585.6,0.55]
[1743971955796,0.06136509,1586.9,1585.5,0.630755]
[1743971955995,0.06136509,1586.9,1584.4,0.631193]
[1743971955996,3.55,1586.7,1584.4,0.631193]
[1743971956220,0.55,1586.4,1584.5,6.31096]
[1743971956424,0.55,1586.2,1584.0,6.31311]
[1743971956609,3.0,1586.5,1584.0,6.31311]
[1743971956610,0.06136509,1586.1,1584.1,0.06310324]
[1743971956788,0.55,1585.8,1584.0,6.31296]
[1743971956992,3.805,1585.3,1583.0,6.31681]
[1743971957301,0.61136509,1585.2,1583.5,6.31496]
[1743971957632,0.06136509,1585.2,1583.7,6.3141]
[1743971957790,0.06136509,1585.2,1583.8,0.63141]
[1743971957996,0.06136509,1585.2,1583.1,6.31672]
[1743971958224,0.06136509,1585.5,1583.8,6.31364]
[1743971958443,0.06136509,1585.5,1583.8,0.55]
[1743971958651,0.06136509,1585.5,1583.1,11.36877408]
[1743971958945,0.06136509,1585.5,1584.0,6.31289]
[1743971959112,0.06136509,1585.7,1584.6,6.31048]
[1743971959303,0.06136509,1585.7,1584.5,3.0]
[1743971959504,0.06136509,1585.9,1585.3,6.30785]
[1743971959801,6.12766103,1586.7,1586.0,6.30491]
[1743971960004,0.06136509,1586.6,1585.8,0.06305334]
[1743971960238,0.06136509,1586.6,1585.1,3.55]
[1743971960544,0.06136509,1586.6,1585.5,6.85715]
[1743971960738,0.06136509,1586.6,1585.2,0.355]
[1743971960928,3.0,1586.4,1585.2,0.355]
[1743971961111,0.06136509,1586.3,1585.1,0.55]
[1743971961311,0.06136509,1586.3,1585.1,3.0]
[1743971961513,6.12766103,1586.7,1585.9,6.30528]
[1743971961741,0.06136509,1586.6,1585.9,6.3054]
[1743971961944,0.06136509,1586.6,1586.0,6.93564]
[1743971962238,6.12766103,1586.7,1586.0,6.93564]
[1743971962239,6.12766103,1586.7,1586.1,6.91763599]
[1743971962411,0.06136509,1586.6,1586.0,0.63054]
[1743971962613,0.06136509,1586.6,1585.9,0.55]
[1743971962817,0.06136509,1586.6,1586.0,6.30512]
[1743971963016,6.12766103,1586.7,1586.0,0.55]
[1743971963219,6.12766103,1586.7,1586.1,6.30452]
[1743971963419,6.12766103,1586.7,1586.2,7.484662]
[1743971963636,6.12766103,1586.7,1586.2,1.180452]
[1743971963940,0.06136509,1587.1,1586.3,6.8537]
[1743971964139,0.06136509,1587.1,1586.3,0.55]
[1743971964345,0.06136509,1587.1,1586.5,12.60579]
[1743971964518,0.06136509,1587.1,1586.6,1.260579]
[1743971964723,37.865,1588.0,1586.5,3.0]
[1743971965042,0.06136509,1587.9,1586.7,6.30217]
[1743971965228,0.06136509,1587.9,1587.1,6.30044]
[1743971965426,0.06136509,1587.9,1587.2,0.06299414]
[1743971965750,0.06136509,1587.9,1587.1,6.30077]
[1743971965951,0.06136509,1587.9,1587.2,6.930457]
[1743971966248,0.06136509,1587.9,1587.3,0.55]
[1743971966405,37.865,1588.0,1587.2,6.930407]
[1743971966741,0.06136509,1587.9,1587.2,0.630077]
[1743971967045,0.06136509,1587.9,1587.0,6.30115]
[1743971967227,0.06136509,1587.9,1587.1,0.55]
[1743971967435,0.06136509,1587.9,1587.2,6.30019]
[1743971967649,0.06136509,1588.3,1587.1,0.55]
[1743971967807,0.06136509,1588.3,1587.4,12.59884]
[1743971968155,0.06136509,1588.3,1587.5,6.29905]
[1743971968394,0.06136509,1588.3,1587.7,6.29809]
[1743971968676,6.12766103,1588.4,1587.8,0.06296928]
[1743971968974,0.06136509,1588.6,1588.0,6.2969]
[1743971969173,0.06136509,1588.6,1588.1,0.62969]
[1743971969479,0.06136509,1588.6,1587.9,6.2976]
[1743971969660,0.06136509,1588.6,1587.6,8.43942789]
[1743971969867,0.06136509,1588.6,1587.7,0.06297352]
[1743971970174,0.06136509,1588.6,1587.7,6.29833]
[1743971970470,0.06136509,1588.6,1587.9,6.29729]
[1743971970671,0.55,1589.0,1587.7,0.61297092]
[1743971970672,0.55,1589.0,1588.0,0.629729]
[1743971970876,0.06136509,1588.9,1588.0,6.29707]
[1743971971177,0.06136509,1588.9,1588.2,6.2964]
[1743971971342,0.06136509,1588.9,1588.2,6.29623]
[1743971971534,0.06136509,1588.9,1588.3,6.296]
[1743971971867,0.06136509,1588.9,1588.0,15.28639789]
[1743971972069,0.06136509,1588.9,1588.1,7.82528979]
[1743971972254,0.06136509,1588.9,1588.1,1.52863979]
[1743971972467,0.06136509,1588.9,1587.6,8.43942789]
[1743971972642,0.06136509,1588.9,1587.7,3.0]
[1743971972847,0.06136509,1588.9,1588.2,6.29641]
[1743971973031,0.55,1589.0,1588.2,6.29643]
[1743971973233,0.55,1589.0,1588.6,6.29458]
[1743971973472,0.55,1589.0,1588.7,0.629458]
[1743971973670,0.55,1589.0,1588.8,6.29402]
[1743971973846,0.55,1589.0,1588.9,6.84366]
[1743971974042,37.822,1590.2,1589.1,6.29268]
[1743971974043,0.06136509,1590.1,1589.1,6.29268]
[1743971974256,0.06136509,1590.1,1589.2,0.69217955]
[1743971974566,0.06136509,1590.1,1589.1,0.55]
[1743971974767,0.06136509,1590.1,1589.1,6.84262]
[1743971974973,0.06136509,1590.1,1588.8,8.43942789]
[1743971975155,0.06136509,1590.1,1589.0,6.29304]
[1743971975354,0.06136509,1590.1,1589.2,6.29224]
[1743971975554,0.06136509,1590.1,1589.3,0.629224]
[1743971975755,0.06136509,1590.1,1589.2,6.2924]
[1743971975978,0.06136509,1590.1,1588.9,6.29351]
[1743971976176,0.06136509,1590.1,1589.1,6.29259]
[1743971976389,0.06136509,1590.1,1589.2,6.29226]
[1743971976688,0.06136509,1590.1,1589.3,6.29181]
[1743971976893,0.06136509,1590.1,1589.4,0.629181]
[1743971977252,0.06136509,1590.1,1588.8,6.29383]
[1743971977566,3.06136509,1590.1,1589.1,6.29265]
[1743971977761,3.06136509,1590.1,1588.7,6.923908]
[1743971977955,0.06136509,1590.1,1589.1,6.2928]
[1743971978152,0.06136509,1590.1,1589.2,6.29234]
[1743971978358,0.06136509,1590.1,1589.3,0.629234]
[1743971978583,0.06136509,1590.1,1589.2,6.84218]
[1743971978782,0.06136509,1590.8,1589.5,3.55]
[1743971979097,0.06136509,1590.8,1589.7,6.84033]
[1743971979254,0.06136509,1590.8,1589.7,0.55]
[1743971979604,0.06136509,1590.8,1589.8,0.06289598]
[1743971979898,0.06136509,1590.8,1589.4,14.73109789]
[1743971980081,0.06136509,1590.8,1589.5,1.47310979]
[1743971980082,3.06136509,1590.8,1589.5,1.47310979]
[1743971980396,3.06136509,1590.8,1589.6,0.55]
[1743971980571,0.06136509,1590.8,1589.8,6.28993]
[1743971980762,0.06136509,1590.8,1589.8,0.55]
[1743971980966,0.06136509,1590.8,1589.8,6.83987]
[1743971981166,0.06136509,1590.8,1590.0,6.83927]
[1743971981368,0.06136509,1590.8,1590.1,6.28875]
[1743971981600,0.06136509,1590.8,1589.9,13.262927]
[1743971981777,0.06136509,1590.8,1590.0,0.55]
[1743971981962,0.06136509,1590.8,1589.9,6.28968]
[1743971982301,0.06136509,1590.8,1590.0,6.918098]
[1743971982592,0.06136509,1591.5,1590.2,6.28833]
[1743971982756,0.06136509,1591.5,1590.3,6.28796]
[1743971982961,0.06136509,1591.5,1590.3,6.28807]
[1743971983163,0.06136509,1591.5,1590.6,6.28668]
[1743971983404,0.06136509,1591.5,1590.7,0.628668]
[1743971983612,0.06136509,1591.5,1590.3,8.43942789]
[1743971983613,0.06136509,1591.5,1590.4,3.55]
[1743971983813,0.06136509,1591.5,1590.0,15.81942901]
[1743971983992,0.06136509,1591.5,1590.2,6.28823]
[1743971984184,3.06136509,1591.5,1590.2,6.28823]
[1743971984400,3.06136509,1591.5,1590.3,6.35096975]
[1743971984587,3.06136509,1591.5,1590.3,6.28773]
[1743971984913,0.06136509,1591.5,1590.5,3.0]
[1743971985111,0.06136509,1591.5,1590.8,6.28598]
[1743971985318,0.06136509,1591.5,1590.7,6.28653]
[1743971985613,0.06136509,1591.5,1590.7,6.28626]
[1743971985785,37.769,1592.4,1591.0,9.28518]
[1743971985786,0.06136509,1592.3,1591.0,9.28518]
[1743971986112,0.06136509,1592.3,1591.2,0.55]
[1743971986412,37.78535115,1593.2,1591.8,6.2819]
[1743971986584,0.06136509,1593.1,1591.9,0.55]
[1743971986777,0.06136509,1593.1,1592.3,9.28022]
[1743971986985,0.01635115,1593.2,1592.6,9.27895]
[1743971987188,0.01635115,1593.2,1593.1,6.27706]
[1743971987424,0.01635115,1593.2,1593.1,6.33982688]
[1743971987604,0.06136509,1594.3,1593.1,11.43831735]
[1743971987918,0.06136509,1595.0,1593.8,8.43942789]
[1743971988077,16.67740339,1595.7,1593.8,14.71372789]
[1743971988078,0.06136509,1595.6,1593.8,14.71372789]
[1743971988278,0.06136509,1595.6,1593.7,6.27446]
[1743971988504,0.1,1595.4,1593.8,0.627446]
[1743971988713,0.06136509,1595.3,1593.2,1.14383174]
[1743971988917,8.43942789,1595.0,1592.6,8.43942789]
[1743971989118,37.81436509,1594.9,1592.9,6.27785]
[1743971989404,8.43942789,1594.6,1592.0,8.43942789]
[1743971989602,0.55,1594.4,1592.6,14.71812789]
[1743971989918,0.55,1594.2,1592.6,14.71840789]
[1743971990123,0.06136509,1594.1,1592.7,6.27846]
[1743971990322,0.06136509,1594.6,1592.7,6.27846]
[1743971990501,3.55,1594.5,1592.8,0.627846]
[1743971990704,0.55,1593.9,1591.7,8.43942789]
[1743971991021,0.55,1593.3,1591.3,8.43942789]
[1743971991331,11.53942789,1593.4,1591.3,8.43942789]
[1743971991332,0.06136509,1593.2,1591.4,7.12771279]
[1743971991508,0.06136509,1593.2,1591.4,7.58787555]
[1743971991722,0.06136509,1593.2,1592.1,8.43942789]
[1743971992119,0.61136509,1593.5,1591.9,8.43942789]
[1743971992442,0.61136509,1593.5,1592.0,0.84394279]
[1743971992623,0.55,1593.1,1591.5,8.43942789]
[1743971992823,0.55,1592.9,1591.2,6.28456]
[1743971993022,0.55,1592.7,1591.1,8.43942789]
[1743971993224,0.55,1592.7,1590.7,8.91809312]
[1743971993225,3.0,1592.5,1590.7,8.91809312]
[1743971993425,0.06136509,1592.4,1590.7,14.72595789]
[1743971993629,0.06136509,1592.4,1591.2,6.28427]
[1743971993836,0.06136509,1592.4,1591.1,8.43942789]
[1743971994154,0.46084961,1593.5,1592.4,6.27977]
[1743971994355,0.06136509,1593.4,1592.5,3.627977]
[1743971994507,37.72,1593.9,1592.7,6.27833]
[1743971994707,3.0,1593.7,1592.8,0.06277697]
[1743971995026,0.06136509,1593.6,1592.5,0.627977]
[1743971995351,0.06136509,1593.6,1592.3,8.43942789]
[1743971995801,0.06136509,1593.6,1592.0,0.55]
[1743971996007,0.06136509,1593.6,1592.3,8.43942789]
[1743971996242,0.06136509,1593.6,1592.5,6.27915]
[1743971996444,0.06136509,1593.6,1592.8,6.278]
[1743971996766,0.06136509,1593.6,1592.9,6.90526]
[1743971997046,3.805,1595.2,1592.9,6.90526]
[1743971997047,0.06136509,1594.3,1593.9,6.27361]
[1743971997344,0.06136509,1595.2,1594.1,6.27313]
[1743971997511,0.06136509,1595.2,1594.2,0.69002967]
[1743971997712,0.06136509,1595.2,1594.2,0.06271667]
[1743971997911,3.06136509,1595.2,1593.9,8.43942789]
[1743971998140,0.06136509,1595.2,1593.8,3.0]
[1743971998346,0.06136509,1595.2,1593.2,0.55]
[1743971998562,3.0,1595.0,1593.1,8.43942789]
[1743971998760,0.06136509,1594.9,1593.6,6.27486]
[1743971998971,0.06136509,1594.9,1593.7,0.06273522]
[1743971999124,0.06136509,1594.9,1593.2,0.84394279]
[1743971999458,0.06136509,1594.9,1593.2,0.9067006]
[1743971999663,0.06136509,1594.9,1593.2,3.84394279]
[1743971999861,0.06136509,1595.0,1593.9,6.27356]
[1743972000060,0.06136509,1595.0,1593.6,14.71429789]
[1743972000227,0.06136509,1595.0,1593.3,6.66034428]
[1743972000430,3.55,1594.8,1592.6,6.27886]
[1743972000745,0.55,1594.6,1592.7,6.27846]
[1743972000941,3.55,1594.4,1592.4,8.43942789]
[1743972001266,0.55,1594.1,1592.2,6.28058]
[1743972001563,0.06136509,1594.0,1592.4,8.43942789]
[1743972001764,0.55,1593.9,1592.1,6.28074]
[1743972002064,0.55,1593.7,1592.0,8.43942789]
[1743972002371,0.06136509,1593.6,1592.5,3.0]
[1743972002664,0.06136509,1594.2,1592.8,6.27803]
[1743972002869,0.06136509,1594.2,1592.5,3.0]
[1743972003174,3.55,1593.8,1591.6,8.43942789]
[1743972003377,0.55,1593.3,1591.4,6.2836]
[1743972003573,0.50024277,1593.2,1592.3,8.43942789]
[1743972003773,0.43887768,1593.2,1592.8,6.27801]
[1743972003942,0.43887768,1593.2,1592.9,0.0627671]
[1743972004137,0.06136509,1593.9,1592.7,11.43942789]
[1743972004338,0.55,1593.8,1592.4,0.84394279]
[1743972004543,0.55,1593.8,1591.6,6.28278]
[1743972004544,0.55,1593.4,1591.6,6.28278]
[1743972004773,3.55,1593.1,1590.9,8.43942789]
[1743972005079,0.06136509,1593.1,1592.7,6.27863]
[1743972005400,0.06136509,1593.0,1592.1,8.43942789]
[1743972005551,0.61136509,1593.7,1592.0,6.28114]
[1743972005739,5.859375,1593.6,1591.7,14.72182789]
[1743972006080,3.55,1593.2,1591.3,14.72334789]
[1743972006264,6.60009061,1593.9,1591.7,8.43942789]
[1743972006265,0.06136509,1593.1,1591.7,8.43942789]
[1743972006474,0.06136509,1593.7,1592.1,6.28067]
[1743972006671,3.0,1592.9,1591.4,7.75575479]
[1743972006868,3.55,1592.7,1591.0,0.84394279]
[1743972007075,0.06136509,1592.6,1591.2,6.28427]
[1743972007373,0.9906675,1592.5,1591.3,0.628427]
[1743972007676,0.06136509,1592.4,1590.6,8.43942789]